bitfinex/quotes_SOLUSD_20250814
["timestamp","ask_amount","ask_price","bid_price","bid_amount"]
[1755159153183,0.71,204.28,204.24,0.03]
[1755159153493,37.2,204.29,204.25,21.31544754]
[1755159153707,37.2,204.29,204.26,21.31544754]
[1755159153893,37.2,204.29,204.25,0.65]
[1755159154090,37.2,204.29,204.25,21.96544754]
[1755159154291,37.2,204.29,204.25,21.31544754]
[1755159154504,37.91,204.29,204.25,21.31544754]
[1755159154908,37.91,204.29,204.24,0.03]
[1755159155306,37.2,204.29,204.24,26.24160294]
[1755159155510,37.2,204.29,204.24,26.89160294]
[1755159155702,37.2,204.29,204.24,5.5761554]
[1755159155900,79.6,204.3,204.24,26.89160294]
[1755159156098,37.18,204.28,204.25,21.31544754]
[1755159156390,37.18,204.28,204.26,26.86113885]
[1755159157297,37.18,204.28,204.26,21.31544754]
[1755159157494,37.18,204.28,204.25,4.89592142]
[1755159157495,37.18,204.28,204.25,21.31544754]
[1755159159103,37.18,204.28,204.26,21.31544754]
[1755159160711,37.18,204.28,204.25,21.31544754]
[1755159161300,0.71,204.27,204.24,0.03]
[1755159162302,37.16,204.27,204.26,21.31544754]
[1755159162614,37.16,204.27,204.26,21.96544754]
[1755159162814,37.16,204.27,204.24,0.03]
[1755159162815,37.16,204.27,204.25,21.34544754]
[1755159163020,37.16,204.27,204.25,0.03]
[1755159163319,37.87,204.27,204.25,0.03]
[1755159163498,0.71,204.26,204.25,0.03]
[1755159164627,22.02544754,204.26,204.25,0.03]
[1755159165419,37.13166311,204.26,204.25,0.03]
[1755159173826,40.71474346,204.26,204.25,0.03]
[1755159174027,37.13166311,204.26,204.25,0.03]
[1755159176408,74.25166311,204.26,204.25,0.03]
[1755159181235,73.54166311,204.26,204.25,0.03]
[1755159181624,74.23166311,204.26,204.25,0.03]
[1755159182440,93.42119712,204.26,204.25,0.03]
[1755159182733,15.10621557,204.25,204.24,0.03]
[1755159182945,52.23476074,204.25,204.24,0.03]
[1755159184125,80.14522673,204.25,204.24,0.03]
[1755159184654,85.75745329,204.25,204.24,0.03]
[1755159187121,89.33094133,204.25,204.24,0.03]
[1755159187313,15.10621557,204.23,204.22,0.03]
[1755159187519,15.10621557,204.23,204.08,0.03]
[1755159187520,79.48,204.18,204.08,0.03]
[1755159187718,21.31544754,204.14,204.13,0.75]
[1755159187914,58.39544754,204.14,204.13,0.03]
[1755159188533,37.08,204.14,204.13,0.75]
[1755159188722,21.31544754,204.14,204.13,0.75]
[1755159188941,58.39544754,204.14,204.13,0.75]
[1755159189324,47.31544754,204.17,204.13,0.75]
[1755159189535,37.08,204.16,204.13,0.75]
[1755159190132,37.08,204.16,204.14,0.72]
[1755159190323,21.31544754,204.15,204.13,0.03]
[1755159190528,58.39544754,204.14,204.13,0.03]
[1755159190726,37.08,204.14,204.13,0.03]
[1755159191024,58.39544754,204.14,204.13,0.75]
[1755159192172,58.39544754,204.14,204.13,0.03]
[1755159193326,74.19166311,204.14,204.13,0.03]
[1755159193636,100.19166311,204.14,204.13,0.03]
[1755159194227,99.50166311,204.14,204.13,0.03]
[1755159194428,100.19166311,204.14,204.13,0.03]
[1755159194847,99.50166311,204.14,204.13,0.03]
[1755159195752,62.42166311,204.14,204.13,0.03]
[1755159196051,99.48166311,204.14,204.13,0.03]
[1755159196357,21.31544754,204.16,204.13,0.75]
[1755159196567,37.06,204.15,204.14,0.72]
[1755159196732,58.37544754,204.15,204.14,0.72]
[1755159197864,58.37544754,204.15,204.13,0.03]
[1755159198161,58.37544754,204.15,204.13,0.75]
[1755159198830,58.37544754,204.15,204.14,0.72]
[1755159199278,2.55134893,204.19,204.14,0.72]
[1755159199560,21.31544754,204.17,204.13,0.03]
[1755159199857,37.04,204.16,204.15,0.72]
[1755159200761,82.84103166,204.23,204.15,22.03544754]
[1755159200762,21.31544754,204.21,204.15,22.03544754]
[1755159200944,37.04,204.2,204.16,0.72]
[1755159201846,37.04,204.2,204.17,0.72]
[1755159202042,37.04,204.2,204.18,0.72]
[1755159202252,21.31544754,204.25,204.19,21.31544754]
[1755159202451,37.04,204.24,204.2,0.72]
[1755159202639,37.04,204.24,204.18,21.31544754]
[1755159202836,37.04,204.24,204.21,0.72]
[1755159203056,79.6,204.26,204.22,0.72]
[1755159203364,21.37544754,204.29,204.23,21.31544754]
[1755159203569,37.02,204.28,204.24,0.72]
[1755159204551,37.02,204.28,204.25,0.72]
[1755159204959,37.02,204.28,204.2,4.89711171]
[1755159204960,21.31544754,204.26,204.2,0.72]
[1755159205139,21.31544754,204.24,204.2,0.72]
[1755159205468,15.10621557,204.2,204.12,0.75]
[1755159205636,37.02,204.19,204.14,0.72]
[1755159205837,37.02,204.19,204.14,22.03544754]
[1755159206061,37.02,204.19,204.15,0.72]
[1755159206677,21.31544754,204.25,204.18,21.31544754]
[1755159206972,21.31544754,204.2,204.15,0.72]
[1755159207194,58.31544754,204.19,204.16,0.72]
[1755159207358,37.0,204.18,204.16,0.72]
[1755159208077,26.0,204.26,204.17,22.03544754]
[1755159208367,26.0,204.26,204.13,0.03]
[1755159208368,21.31544754,204.18,204.13,0.03]
[1755159208567,21.31544754,204.15,204.13,0.03]
[1755159208769,37.0,204.14,204.13,0.75]
[1755159209063,37.0,204.14,204.13,0.03]
[1755159209471,21.31544754,204.2,204.13,22.06544754]
[1755159209650,37.0,204.19,204.14,21.31544754]
[1755159209854,37.0,204.19,204.15,0.72]
[1755159210476,21.31544754,204.18,204.15,0.68]
[1755159210659,37.0,204.17,204.16,0.68]
[1755159211353,37.0,204.17,204.13,21.34544754]
[1755159211550,37.0,204.17,204.16,0.68]
[1755159211745,79.6,204.21,204.16,21.99544754]
[1755159211947,36.98,204.2,204.17,0.68]
[1755159212149,36.98,204.2,204.18,0.68]
[1755159212468,36.98,204.2,204.19,0.68]
[1755159213269,36.98,204.2,204.15,21.31544754]
[1755159213474,36.98,204.2,204.17,0.68]
[1755159213777,36.98,204.2,204.13,26.03]
[1755159213942,21.31544754,204.18,204.14,0.68]
[1755159214141,36.98,204.17,204.14,0.68]
[1755159214571,36.98,204.17,204.15,0.68]
[1755159214769,36.98,204.17,204.15,14.80634349]
[1755159214952,36.98,204.17,204.16,0.68]
[1755159216091,36.98,204.17,204.16,15.48634349]
[1755159216779,36.98,204.17,204.16,20.38446261]
[1755159216942,36.98,204.17,204.16,5.57811912]
[1755159217145,36.98,204.17,204.16,20.38446261]
[1755159217755,0.06,204.23,204.16,46.38446261]
[1755159217984,36.96,204.22,204.21,14.80634349]
[1755159218148,36.96,204.22,204.21,15.48634349]
[1755159218445,0.06,204.23,204.21,15.48634349]
[1755159218647,37.02,204.23,204.22,15.48634349]
[1755159218849,37.02,204.23,204.22,61.48923911]
[1755159221147,0.06,204.23,204.22,61.48923911]
[1755159221974,0.06,204.23,204.22,26.0]
[1755159222150,0.06,204.23,204.2,19.70338397]
[1755159222355,36.94,204.22,204.2,19.70338397]
[1755159222570,36.94,204.22,204.17,14.80634349]
[1755159222765,36.94,204.22,204.17,15.48634349]
[1755159223059,36.94,204.22,204.18,14.80634349]
[1755159223260,36.94,204.22,204.18,15.48634349]
[1755159223454,36.94,204.22,204.19,15.48634349]
[1755159223672,36.94,204.22,204.2,15.48634349]
[1755159224278,36.94,204.22,204.2,14.80634349]
[1755159224484,37.65,204.22,204.17,40.80634349]
[1755159224691,36.94,204.22,204.17,26.0]
[1755159224855,0.06,204.23,204.2,14.80634349]
[1755159225059,36.92,204.22,204.2,15.48634349]
[1755159225459,36.92,204.22,204.21,14.80634349]
[1755159226476,36.92,204.22,204.21,15.48634349]
[1755159227607,36.98,204.23,204.21,20.38326332]
[1755159227905,36.98,204.23,204.22,15.48634349]
[1755159228996,36.98,204.23,204.22,30.59255906]
[1755159229383,0.06,204.23,204.22,30.59255906]
[1755159229580,0.06,204.23,204.22,35.48923911]
[1755159229898,0.06,204.23,204.22,14.80634349]
[1755159230203,0.06,204.23,204.21,4.89691631]
[1755159230204,36.96,204.23,204.21,4.89691631]
[1755159230402,36.96,204.23,204.22,15.48634349]
[1755159230598,36.96,204.23,204.22,30.59255906]
[1755159230903,0.06,204.23,204.22,30.59255906]
[1755159231602,0.06,204.23,204.22,35.48923911]
[1755159233003,0.06,204.29,204.25,40.80634349]
[1755159233209,0.06,204.29,204.28,14.80634349]
[1755159233418,0.06,204.29,204.28,15.48634349]
[1755159233595,0.06,204.29,204.28,35.48780088]
[1755159234805,0.06,204.29,204.28,20.38158531]
[1755159235185,0.06,204.29,204.28,35.48780088]
[1755159236906,0.06,204.29,204.28,30.42890574]
[1755159237406,0.06,204.29,204.28,30.91842992]
[1755159238511,0.06,204.29,204.28,30.42890574]
[1755159238809,0.06,204.29,204.28,9.74744835]
[1755159239308,0.69,204.29,204.26,9.74744835]
[1755159239599,0.69,204.29,204.27,9.74744835]
[1755159239779,0.06,204.29,204.28,9.74744835]
[1755159240408,0.73,204.29,204.27,9.74744835]
[1755159240617,0.06,204.29,204.28,9.74744835]
[1755159240982,0.06,204.29,204.28,26.0131881]
[1755159241188,0.06,204.3,204.29,41.10621557]
[1755159241411,0.06,204.3,204.29,51.52366392]
[1755159242488,0.06,204.3,204.29,30.41866612]
[1755159243617,0.06,204.32,204.31,41.10621557]
[1755159243813,0.67,204.44,204.35,41.10621557]
[1755159244121,0.67,204.47,204.39,41.10621557]
[1755159244307,0.67,204.47,204.39,50.85366392]
[1755159244615,0.67,204.47,204.39,56.41627119]
[1755159244796,0.67,204.44,204.39,55.74627119]
[1755159244999,0.67,204.46,204.39,56.41627119]
[1755159246315,0.67,204.46,204.39,55.74627119]
[1755159246496,0.67,204.46,204.39,56.41627119]
[1755159247018,46.56744835,204.49,204.39,55.74627119]
[1755159247197,0.67000001,204.4,204.34,15.10621557]
[1755159247596,0.67000001,204.4,204.34,41.10621557]
[1755159248324,0.67000001,204.4,204.33,4.89404394]
[1755159248617,9.74423193,204.39,204.32,20.00045468]
[1755159248798,0.67,204.38,204.29,4.8950022]
[1755159249006,9.74423193,204.36,204.27,20.00169704]
[1755159249216,9.74423193,204.32,204.21,0.67]
[1755159249518,0.67,204.31,204.21,0.67]
[1755159249724,0.67,204.31,204.22,15.10621557]
[1755159249915,0.67,204.31,204.25,26.0]
[1755159250121,10.41423193,204.31,204.22,15.10621557]
[1755159250416,0.67,204.3,204.25,0.03]
[1755159250611,0.67,204.29,204.25,0.03]
[1755159250820,0.67,204.28,204.25,0.03]
[1755159251016,37.47,204.32,204.25,15.80621557]
[1755159251210,37.47,204.32,204.25,15.13621557]
[1755159251901,0.67,204.31,204.25,0.03]
[1755159252423,0.67,204.31,204.25,15.13621557]
[1755159253303,0.67,204.31,204.26,4.89572113]
[1755159253623,36.8,204.32,204.28,26.0]
[1755159253823,36.8,204.32,204.29,26.0]
[1755159255507,36.8,204.32,204.3,4.8947626]
[1755159257425,36.8,204.32,204.29,26.0]
[1755159257426,0.67,204.31,204.29,30.89497843]
[1755159257728,36.8,204.32,204.29,30.89497843]
[1755159257935,36.8,204.32,204.29,31.56497843]
[1755159259222,36.8,204.32,204.3,0.67]
[1755159259424,36.8,204.32,204.29,30.89497843]
[1755159259925,36.8,204.32,204.29,31.56497843]
[1755159260133,36.76,204.36,204.3,0.67]
[1755159260716,36.76,204.36,204.29,43.13248393]
[1755159260921,0.67,204.35,204.29,30.89497843]
[1755159261529,0.67,204.35,204.29,43.13248393]
[1755159261712,0.67,204.35,204.29,30.89497843]
[1755159262537,9.74423193,204.31,204.25,4.92591859]
[1755159262717,37.41,204.3,204.25,30.92591859]
[1755159262919,0.67,204.29,204.25,4.92591859]
[1755159263130,0.67,204.28,204.25,4.92591859]
[1755159263437,0.67,204.27,204.26,26.0]
[1755159263817,0.67,204.27,204.25,0.03]
[1755159264015,0.67,204.26,204.25,0.03]
[1755159264234,37.41,204.3,204.25,4.92596083]
[1755159264432,0.67,204.3,204.25,4.92596083]
[1755159264635,0.67,204.33,204.26,15.77621557]
[1755159264819,0.67,204.36,204.29,26.0]
[1755159265018,37.41,204.36,204.29,26.0]
[1755159265736,0.67,204.35,204.29,26.0]
[1755159265933,9.74423193,204.33,204.25,0.03]
[1755159266136,9.74423193,204.33,204.26,4.89572113]
[1755159266434,0.67,204.33,204.27,26.0]
[1755159266945,10.41423193,204.33,204.26,4.89572113]
[1755159267266,0.67,204.32,204.26,4.89572113]
[1755159267911,0.67,204.32,204.25,5.59596083]
[1755159268113,10.41423193,204.32,204.25,30.92596083]
[1755159268421,10.41423193,204.31,204.25,30.92596083]
[1755159268615,37.39,204.3,204.25,26.03]
[1755159268934,0.67,204.29,204.25,26.03]
[1755159269437,36.72,204.3,204.25,26.03]
[1755159269611,36.72,204.31,204.28,26.0]
[1755159270013,0.67,204.3,204.27,4.8953105]
[1755159270219,0.67,204.29,204.26,4.89569]
[1755159270438,0.72,204.28,204.25,0.03]
[1755159270640,10.46423193,204.28,204.25,0.03]
[1755159270822,9.74423193,204.26,204.25,0.03]
[1755159271008,0.72,204.26,204.25,0.03]
[1755159271215,10.46423193,204.26,204.25,0.03]
[1755159271413,0.72,204.26,204.25,0.03]
[1755159272323,10.46423193,204.26,204.25,0.03]
[1755159273245,0.72,204.26,204.25,0.03]
[1755159273452,10.46423193,204.26,204.25,0.03]
[1755159274318,0.72,204.26,204.25,0.03]
[1755159274519,47.18423193,204.26,204.25,0.03]
[1755159275542,62.2904475,204.26,204.25,0.03]
[1755159275940,47.18423193,204.26,204.25,0.03]
[1755159276142,47.16423193,204.26,204.25,0.03]
[1755159276717,37.42,204.26,204.25,0.03]
[1755159277226,0.72,204.26,204.25,0.03]
[1755159277434,73.16423193,204.26,204.25,0.03]
[1755159278136,37.42,204.26,204.25,0.03]
[1755159278523,36.7,204.26,204.25,0.03]
[1755159280658,47.16423193,204.26,204.25,0.03]
[1755159281434,62.2704475,204.26,204.25,0.03]
[1755159282137,67.75090389,204.26,204.25,0.03]
[1755159282522,153.08667196,204.25,204.23,0.03]
[1755159282722,26.0,204.22,204.21,0.03]
[1755159282924,88.2504475,204.22,204.21,0.03]
[1755159286255,72.42423193,204.22,204.21,0.03]
[1755159287030,73.14423193,204.22,204.21,0.03]
[1755159287234,72.42423193,204.22,204.21,0.03]
[1755159287538,36.68,204.22,204.21,0.03]
[1755159287742,46.42423193,204.22,204.21,0.03]
[1755159288146,36.68,204.22,204.21,0.03]
[1755159288763,46.42423193,204.22,204.21,0.03]
[1755159289350,36.68,204.22,204.21,0.03]
[1755159289554,46.42423193,204.22,204.21,0.03]
[1755159290070,36.68,204.22,204.21,0.03]
[1755159291066,47.14423193,204.22,204.21,0.03]
[1755159292466,62.2504475,204.22,204.21,0.03]
[1755159292639,46.42423193,204.22,204.21,0.03]
[1755159293570,35.74423193,204.24,204.21,0.03]
[1755159293778,36.66,204.23,204.21,0.75]
[1755159293950,36.66,204.22,204.21,0.75]
[1755159294149,36.66,204.22,204.21,0.03]
[1755159294456,36.66,204.22,204.21,0.75]
[1755159296246,36.66,204.22,204.21,5.64691983]
[1755159297252,36.66,204.22,204.21,0.03]
[1755159298647,36.66,204.22,204.21,0.75]
[1755159298849,36.64,204.22,204.21,0.75]
[1755159300486,0.06,204.28,204.21,26.75]
[1755159300786,36.62,204.27,204.26,30.89572113]
[1755159300943,35.9,204.27,204.26,31.55572113]
[1755159301392,0.06,204.37,204.3,26.0]
[1755159301699,36.68,204.36,204.31,15.76621557]
[1755159301857,36.68,204.36,204.32,0.66]
[1755159302175,0.06,204.34,204.33,26.0]
[1755159302575,0.06,204.34,204.33,31.55404394]
[1755159304687,0.06,204.36,204.33,46.66025951]
[1755159304889,0.06,204.36,204.35,41.10621557]
[1755159305207,0.06,204.36,204.35,41.76621557]
[1755159305768,0.06,204.39,204.38,41.10621557]
[1755159305991,0.06,204.39,204.38,41.76621557]
[1755159306493,0.06,204.41,204.39,15.10621557]
[1755159306696,0.06,204.41,204.4,5.5523679]
[1755159307966,0.72,204.63,204.41,15.10621557]
[1755159308162,0.72,204.63,204.51,41.10621557]
[1755159308406,2.54484361,204.62,204.56,26.0]
[1755159308615,9.74423193,204.69,204.56,26.0]
[1755159308616,36.58,204.63,204.57,4.88830229]
[1755159308903,36.58,204.63,204.57,30.88830229]
[1755159309409,0.72,204.7,204.61,26.0]
[1755159309584,36.58,204.69,204.62,15.76621557]
[1755159310777,36.58,204.69,204.63,4.88686898]
[1755159312001,0.72,204.68,204.62,15.10621557]
[1755159312421,0.72,204.68,204.58,0.66]
[1755159312422,36.54,204.67,204.58,0.66]
[1755159312711,36.54,204.67,204.6,26.0]
[1755159312879,36.54,204.67,204.61,26.0]
[1755159313085,0.72,204.68,204.61,26.0]
[1755159313284,36.54,204.66,204.61,26.0]
[1755159313693,0.72,204.68,204.61,26.0]
[1755159313890,36.54,204.65,204.61,26.0]
[1755159314080,0.72,204.64,204.59,26.0]
[1755159314379,0.72,204.64,204.56,15.10621557]
[1755159314589,10.46423193,204.64,204.53,4.88925829]
[1755159314816,9.74423193,204.62,204.53,4.88925829]
[1755159315085,9.74423193,204.62,204.46,10.0]
[1755159315086,0.72,204.61,204.52,15.10621557]
[1755159315278,37.24,204.61,204.55,26.0]
[1755159315477,37.24,204.61,204.49,17.11575138]
[1755159315478,9.74423193,204.58,204.49,4.89021468]
[1755159315780,9.74423193,204.59,204.5,15.10621557]
[1755159315991,0.06,204.67,204.51,0.66]
[1755159316195,0.72,204.64,204.55,26.0]
[1755159316406,0.72,204.64,204.49,4.89021468]
[1755159316578,37.24,204.64,204.51,15.10621557]
[1755159316901,37.24,204.64,204.58,26.0]
[1755159317104,37.24,204.64,204.58,30.88791646]
[1755159317414,36.52,204.64,204.6,26.0]
[1755159317718,0.72,204.63,204.6,26.0]
[1755159318291,0.72,204.63,204.6,4.88754532]
[1755159318292,36.52,204.62,204.6,4.88754532]
[1755159318600,0.72,204.61,204.59,26.0]
[1755159318781,0.72,204.61,204.58,26.0]
[1755159318975,0.72,204.66,204.59,26.0]
[1755159319177,36.52,204.61,204.59,26.0]
[1755159319705,36.5,204.66,204.63,26.0]
[1755159320303,36.5,204.66,204.64,4.88663017]
[1755159320497,0.06,204.67,204.64,4.88663017]
[1755159320707,36.56,204.67,204.64,4.88663017]
[1755159321095,0.72,204.66,204.6,26.0]
[1755159322385,0.72,204.66,204.61,4.88734665]
[1755159322796,36.56,204.67,204.61,4.88734665]
[1755159323600,0.06,204.67,204.61,4.88734665]
[1755159323801,0.06,204.67,204.64,26.0]
[1755159324197,0.06,204.67,204.65,0.66]
[1755159324392,0.06,204.67,204.66,4.88615264]
[1755159325304,0.78,204.67,204.59,4.88782442]
[1755159325609,0.78,204.67,204.61,26.0]
[1755159326181,0.06,204.67,204.62,26.0]
[1755159326402,0.06,204.67,204.64,4.88663017]
[1755159328120,0.06,204.67,204.64,5.54663017]
[1755159328704,0.06,204.67,204.63,30.88682829]
[1755159329005,0.06,204.67,204.64,15.10621557]
[1755159329834,0.72,204.91,204.83,26.0]
[1755159329985,0.72,204.94,204.87,26.0]
[1755159330190,2.54098453,204.93,204.88,15.10621557]
[1755159330385,2.54098453,204.93,204.9,15.10621557]
[1755159330589,0.7,204.93,204.89,30.88066767]
[1755159330810,36.46,204.97,204.88,4.88088457]
[1755159331006,0.7,204.92,204.88,4.88088457]
[1755159331434,0.7,204.91,204.86,26.0]
[1755159331619,46.90423193,204.9,204.76,12.20888194]
[1755159331935,46.90423193,204.89,204.8,26.0]
[1755159332101,37.16,204.88,204.77,0.7]
[1755159332303,36.46,204.87,204.81,26.0]
[1755159332615,15.10621557,204.95,204.69,36.46]
[1755159332616,14.71601035,204.84,204.72,15.10621557]
[1755159332803,37.16,204.83,204.74,4.88422118]
[1755159333009,37.16,204.83,204.75,5.33501089]
[1755159333609,15.41601035,204.82,204.75,0.45103096]
[1755159333806,0.7,204.81,204.75,26.45103096]
[1755159334012,0.7,204.81,204.75,0.45103096]
[1755159334405,0.7,204.81,204.75,26.45103096]
[1755159334752,0.7,204.94,204.79,10.0]
[1755159335029,0.7,205.02,204.92,15.10621557]
[1755159335244,14.71601035,204.98,204.91,26.0]
[1755159335403,36.46,205.01,204.91,26.0]
[1755159335605,0.7,204.97,204.91,26.0]
[1755159335828,15.41601035,204.97,204.91,26.0]
[1755159336027,14.71601035,204.94,204.84,15.10621557]
[1755159336332,37.16,204.93,204.84,26.0]
[1755159336641,36.44,204.92,204.85,4.88162069]
[1755159337140,0.7,204.98,204.89,26.0]
[1755159337314,36.44,204.97,204.89,26.0]
[1755159337628,36.44,204.97,204.9,15.10621557]
[1755159338112,0.76,204.98,204.9,15.10621557]
[1755159338315,36.44,204.97,204.9,15.10621557]
[1755159338523,0.76,204.98,204.93,26.0]
[1755159338724,0.06,204.98,204.93,26.0]
[1755159338932,0.06,204.98,204.94,26.0]
[1755159340609,0.06,204.98,204.95,4.87923883]
[1755159341018,0.06,204.98,204.95,30.87923883]
[1755159341528,0.06,204.98,204.95,4.87923883]
[1755159341838,0.06,204.98,204.95,5.57923883]
[1755159342041,0.06,204.98,204.97,26.0]
[1755159342733,0.06,204.98,204.97,4.87876274]
[1755159342911,0.06,205.01,204.97,4.87876274]
[1755159342912,0.06,205.01,205.0,41.10621557]
[1755159343115,0.06,205.01,205.0,41.80621557]
[1755159344535,0.06,205.01,205.0,41.10621557]
[1755159344758,0.06,205.01,205.0,45.98426435]
[1755159345034,0.06,205.01,204.98,4.87835344]
[1755159345343,0.06,205.01,204.96,26.0]
[1755159345526,0.7,205.0,204.96,26.0]
[1755159346452,0.06,205.01,204.98,26.0]
[1755159346629,0.06,205.01,204.99,4.87828674]
[1755159347140,0.06,205.01,204.98,30.87843162]
[1755159347447,0.76,205.01,204.96,30.87878097]
[1755159347653,0.06,205.01,204.96,30.87878097]
[1755159348150,0.06,205.01,205.0,26.0]
[1755159348516,0.76,205.01,204.92,15.10621557]
[1755159348718,0.76,205.01,204.96,4.87900078]
[1755159349017,0.7,205.0,204.96,4.87900078]
[1755159349231,0.7,205.0,204.94,41.10621557]
[1755159349439,0.7,205.0,204.91,4.8801913]
[1755159349728,0.7,205.0,204.82,0.7]
[1755159349729,14.71601035,204.97,204.82,0.7]
[1755159350023,37.1,204.96,204.83,15.10621557]
[1755159350222,37.1,204.96,204.82,0.7]
[1755159350223,0.7,204.96,204.85,15.10621557]
[1755159350415,0.7,204.96,204.89,15.10621557]
[1755159350619,0.7,204.96,204.9,4.88042947]
[1755159350823,0.7,204.99,204.92,26.0]
[1755159351832,0.7,204.99,204.93,26.0]
[1755159352540,0.7,204.99,204.91,41.10621557]
[1755159352746,0.7,204.99,204.91,30.88000159]
[1755159353243,0.7,204.99,204.91,43.08047984]
[1755159353832,0.7,204.99,204.92,15.10621557]
[1755159354350,36.4,205.0,204.92,15.10621557]
[1755159354351,0.06,205.01,204.95,26.0]
[1755159354841,0.06,205.01,204.96,30.87900078]
[1755159355632,0.06,205.01,204.96,4.87900078]
[1755159356826,0.06,205.01,204.96,17.07650273]
[1755159357634,0.7,205.0,204.96,30.87900078]
[1755159357947,0.06,205.01,204.96,30.87900078]
[1755159358326,0.06,205.01,205.0,26.0]
[1755159358758,0.06,205.01,205.0,30.87804878]
[1755159359428,0.06,205.01,205.0,46.68426435]
[1755159360340,0.06,205.01,205.0,45.98426435]
[1755159360541,0.06,205.01,205.0,30.87804878]
[1755159360859,0.06,205.01,204.97,4.87876274]
[1755159361048,0.66,205.0,204.97,30.87876274]
[1755159361253,0.06,205.01,204.97,43.0756696]
[1755159361453,0.66,205.0,204.97,4.87876274]
[1755159361644,0.66,205.0,204.97,30.87876274]
[1755159361952,0.06,205.01,204.97,26.0]
[1755159362157,0.66,204.99,204.97,26.0]
[1755159362368,0.66,204.98,204.94,4.87947692]
[1755159362530,0.66,204.97,204.93,4.90968056]
[1755159362729,0.66,204.96,204.93,4.90968056]
[1755159362933,0.66,205.0,204.93,26.03]
[1755159363356,0.66,205.0,204.94,15.10621557]
[1755159363556,0.72,205.01,204.93,26.03]
[1755159364840,0.72,205.01,204.94,4.87947692]
[1755159365367,0.72,205.01,204.93,30.90966846]
[1755159365540,15.43601035,205.01,204.93,0.03]
[1755159365739,14.71601035,205.0,204.93,0.03]
[1755159365961,0.66,204.99,204.93,0.03]
[1755159366141,37.04,204.99,204.93,0.03]
[1755159366346,37.04,204.99,204.93,4.90962604]
[1755159367572,0.66,204.98,204.93,4.90962604]
[1755159367862,14.71601035,204.96,204.93,0.03]
[1755159368050,15.37601035,204.95,204.93,0.03]
[1755159368234,0.66,204.94,204.93,0.03]
[1755159368952,15.37601035,204.94,204.93,0.03]
[1755159369346,30.48222592,204.94,204.93,0.03]
[1755159372893,15.10621557,204.92,204.91,0.03]
[1755159373089,66.86222592,204.92,204.91,0.03]
[1755159373248,41.10621557,204.9,204.89,0.03]
[1755159373452,15.10621557,204.81,204.7,0.65]
[1755159373653,14.71601035,204.79,204.7,7.48729124]
[1755159373895,0.66,204.78,204.7,7.48729124]
[1755159374056,0.66,204.78,204.7,1.952124]
[1755159374057,14.71601035,204.77,204.7,1.952124]
[1755159374259,15.37601035,204.76,204.69,4.8852608]
[1755159374558,15.37601035,204.76,204.68,0.03]
[1755159374559,14.71601035,204.75,204.68,0.03]
[1755159374758,36.38,204.74,204.68,0.03]
[1755159374954,37.04,204.74,204.68,0.03]
[1755159375360,0.66,204.73,204.68,0.03]
[1755159375679,36.4,204.74,204.69,0.65]